bitfinex/quotes_SOLUSD_20230120
["timestamp","ask_amount","ask_price","bid_price","bid_amount"]
[1674185889589,113.679,21.285,21.272,10.0]
[1674185889812,113.679,21.285,21.273,37.0]
[1674185890016,113.679,21.285,21.274,10.0]
[1674185890215,113.679,21.285,21.275,37.0]
[1674185894630,10.0,21.284,21.275,37.0]
[1674185894837,1.92,21.283,21.275,20.0]
[1674185895070,1.92,21.283,21.26,50.92811696]
[1674185895276,37.16,21.283,21.26,15.02]
[1674185895510,1.92,21.283,21.26,15.02]
[1674185896663,1.92,21.283,21.266,37.0]
[1674185898119,1.92,21.283,21.267,11.92]
[1674185898331,1.92,21.283,21.27,14.99]
[1674185898547,1.92,21.283,21.271,37.0]
[1674185898969,10.0,21.284,21.271,37.0]
[1674185900743,1.92,21.283,21.271,37.0]
[1674185905587,1.92,21.283,21.26,15.02]
[1674185906224,9.42,21.284,21.266,10.0]
[1674185907143,9.42,21.284,21.267,20.0]
[1674185907482,9.42,21.284,21.268,17.0]
[1674185908533,1.92,21.283,21.268,17.0]
[1674185910318,1.92,21.283,21.269,10.0]
[1674185910532,1.92,21.283,21.27,32.05]
[1674185914626,1.92,21.283,21.271,10.0]
[1674185914835,113.679,21.285,21.272,17.0]
[1674185915048,113.679,21.285,21.273,20.0]
[1674185915249,113.679,21.285,21.274,17.0]
[1674185915679,113.679,21.285,21.275,20.0]
[1674185915875,113.679,21.285,21.276,17.0]
[1674185916205,113.679,21.285,21.277,20.0]
[1674185916923,35.22,21.299,21.278,17.0]
[1674185917141,10.0,21.298,21.281,10.0]
[1674185917350,10.0,21.298,21.282,17.0]
[1674185917987,116.5442,21.299,21.283,30.0]
[1674185918183,116.5442,21.299,21.285,10.0]
[1674185918611,116.5442,21.299,21.286,17.0]
[1674185918834,116.5442,21.299,21.287,20.0]
[1674185919020,10.0,21.298,21.288,17.0]
[1674185919232,0.96,21.295,21.287,20.0]
[1674185919442,0.96,21.295,21.284,20.0]
[1674185919653,0.96,21.295,21.285,17.0]
[1674185919862,0.96,21.295,21.286,20.0]
[1674185921863,10.96,21.295,21.286,20.0]
[1674185923023,0.96,21.294,21.286,20.0]
[1674185923353,0.96,21.293,21.281,20.0]
[1674185924068,0.96,21.293,21.282,17.0]
[1674185924279,0.96,21.293,21.275,119.9272]
[1674185924486,0.96,21.292,21.275,10.0]
[1674185924701,0.96,21.291,21.275,10.0]
[1674185924911,0.96,21.29,21.275,10.0]
[1674185925130,0.96,21.289,21.275,10.0]
[1674185925878,0.96,21.289,21.27,10.0]
[1674185926087,0.96,21.288,21.27,25.05]
[1674185926302,0.96,21.287,21.272,20.0]
[1674185926485,0.96,21.286,21.271,20.0]
[1674185926823,0.96,21.285,21.271,20.0]
[1674185927008,0.96,21.284,21.271,20.0]
[1674185927345,0.96,21.283,21.271,20.0]
[1674185927961,0.96,21.282,21.265,10.0]
[1674185928291,0.96,21.281,21.265,10.0]
[1674185928903,0.96,21.282,21.265,10.0]
[1674185929111,10.0,21.285,21.265,10.0]
[1674185929339,1.92,21.284,21.265,10.0]
[1674185929767,1.92,21.284,21.267,20.0]
[1674185930071,1.92,21.284,21.268,17.0]
[1674185931111,1.92,21.284,21.269,10.0]
[1674185931332,1.92,21.284,21.27,17.0]
[1674185933434,1.92,21.284,21.268,17.0]
[1674185934880,128.7494,21.285,21.269,11.92]
[1674185935096,0.96,21.284,21.27,17.0]
[1674185935434,1.92,21.284,21.27,17.0]
[1674185941851,10.0,21.289,21.27,32.05]
[1674185942056,10.0,21.29,21.271,31.92]
[1674185942374,10.0,21.29,21.272,17.0]
[1674185942571,10.0,21.29,21.273,1.92]
[1674185942900,10.0,21.29,21.274,10.0]
[1674185943218,10.0,21.29,21.275,37.0]
[1674185943413,10.0,21.29,21.275,20.0]
[1674185943949,10.0,21.288,21.271,20.0]
[1674185944162,1.92,21.287,21.271,20.0]
[1674185945504,1.92,21.287,21.272,17.0]
[1674185945720,1.92,21.287,21.273,20.0]
[1674185947111,1.92,21.287,21.27,15.05]
[1674185947292,35.24,21.286,21.265,112.5]
[1674185947626,18.92,21.285,21.266,20.0]
[1674185947841,45.24,21.284,21.266,20.0]
[1674185948154,18.92,21.283,21.266,20.0]
[1674185948365,10.0,21.282,21.266,20.0]
[1674185948556,1.92,21.281,21.266,20.0]
[1674185949412,1.92,21.281,21.267,17.0]
[1674185949735,1.92,21.281,21.266,17.0]
[1674185950674,1.92,21.281,21.267,20.0]
[1674185950888,1.92,21.281,21.268,17.0]
[1674185951192,1.92,21.281,21.267,20.0]
[1674185951405,35.25,21.28,21.266,20.0]
[1674185951616,18.92,21.279,21.266,20.0]
[1674185951939,10.0,21.278,21.266,20.0]
[1674185952151,1.92,21.277,21.261,20.0]
[1674185952861,10.0,21.276,21.261,20.0]
[1674185953080,0.96,21.275,21.261,20.0]
[1674185953494,10.0,21.276,21.261,20.0]
[1674185953703,0.96,21.275,21.261,20.0]
[1674185953925,0.96,21.275,21.262,17.0]
[1674185954133,0.96,21.275,21.263,20.0]
[1674185954353,154.9055,21.284,21.265,10.0]
[1674185954545,45.24,21.282,21.266,17.0]
[1674185954758,45.24,21.282,21.267,20.0]
[1674185954967,10.0,21.282,21.267,20.0]
[1674185955296,10.0,21.282,21.268,17.0]
[1674185956577,0.96,21.279,21.268,17.0]
[1674185957713,10.0,21.282,21.268,17.0]
[1674185959210,10.0,21.282,21.267,20.0]
[1674185959523,1.92,21.279,21.262,20.0]
[1674185959835,1.92,21.279,21.263,10.0]
[1674185960054,1.92,21.279,21.265,10.0]
[1674185960254,1.92,21.279,21.266,20.0]
[1674185960669,1.92,21.279,21.267,17.0]
[1674185970559,0.96,21.279,21.267,17.0]
[1674185970754,10.0,21.283,21.268,10.0]
[1674185970963,10.0,21.283,21.269,17.0]
[1674185972139,1.92,21.282,21.269,17.0]
[1674185972543,10.0,21.283,21.269,17.0]
[1674185974250,0.96,21.282,21.267,17.0]
[1674185975715,1.92,21.282,21.267,17.0]
[1674185977398,0.96,21.281,21.267,17.0]
[1674185977613,0.96,21.28,21.266,20.0]
[1674185977807,0.96,21.28,21.264,20.0]
[1674185978678,0.96,21.28,21.26,25.02]
[1674185978679,0.96,21.28,21.262,20.0]
[1674185978858,0.96,21.28,21.263,18.92]
[1674185979069,0.96,21.28,21.264,20.0]
[1674185979380,0.96,21.28,21.265,17.0]
[1674185979801,0.96,21.28,21.266,20.0]
[1674185980029,0.96,21.28,21.267,17.0]
[1674185980252,0.96,21.279,21.266,20.0]
[1674185980558,0.96,21.278,21.262,20.0]
[1674185980776,0.96,21.277,21.263,10.0]
[1674185980957,0.96,21.276,21.264,20.0]
[1674185981609,0.96,21.276,21.265,17.0]
[1674185981809,0.96,21.276,21.267,10.0]
[1674185982241,0.96,21.276,21.266,10.0]
[1674185982428,0.96,21.276,21.267,37.0]
[1674185984443,10.0,21.283,21.267,37.0]
[1674185984763,1.92,21.282,21.267,37.0]
[1674185988855,10.0,21.283,21.267,37.0]
[1674185990202,0.96,21.282,21.267,37.0]
[1674185990624,10.0,21.283,21.268,10.96]
[1674185990856,10.0,21.283,21.27,15.02]
[1674185991063,10.0,21.283,21.271,17.0]
[1674185992108,0.96,21.282,21.271,17.0]
[1674185992536,0.96,21.281,21.27,15.02]
[1674185992733,0.96,21.28,21.27,15.02]
[1674185995674,0.96,21.28,21.271,17.0]
[1674185996527,10.0,21.283,21.271,17.0]
[1674185996846,0.96,21.282,21.271,17.0]
[1674185997583,10.0,21.288,21.271,17.0]
[1674185997777,10.0,21.288,21.273,10.0]
[1674185998105,10.0,21.288,21.274,17.0]
[1674185998321,10.0,21.288,21.275,20.0]
[1674185998505,10.0,21.288,21.276,17.0]
[1674185998718,10.0,21.288,21.277,20.0]
[1674185998944,10.0,21.288,21.278,17.0]
[1674186001575,10.0,21.29,21.278,17.0]
[1674186003149,0.96,21.289,21.278,17.0]
[1674186003678,0.96,21.288,21.278,17.0]
[1674186009154,0.96,21.289,21.278,17.0]
[1674186009363,10.0,21.29,21.278,17.0]
[1674186009674,0.96,21.289,21.278,17.0]
[1674186011572,1.92,21.289,21.278,17.0]
[1674186012936,1.92,21.289,21.277,20.0]
[1674186013157,0.96,21.288,21.272,20.0]
[1674186014092,0.96,21.287,21.273,10.0]
[1674186014407,0.96,21.287,21.274,20.0]
[1674186015133,0.96,21.287,21.275,17.0]
[1674186015339,0.96,21.287,21.276,20.0]
[1674186015570,0.96,21.287,21.277,17.0]
[1674186016407,10.0,21.29,21.277,17.0]
[1674186017532,0.96,21.289,21.277,17.0]
[1674186017747,0.96,21.288,21.277,17.0]
[1674186018408,0.96,21.289,21.277,17.0]
[1674186018617,10.0,21.29,21.277,17.0]
[1674186019019,119.3813,21.292,21.28,15.05]
[1674186019229,119.3813,21.292,21.281,17.0]
[1674186019439,10.0,21.291,21.281,17.0]
[1674186023445,10.0,21.291,21.281,112.5]
[1674186023656,1.92,21.29,21.281,112.5]
[1674186023865,1.92,21.29,21.276,20.0]
[1674186024075,1.92,21.29,21.273,10.0]
[1674186024076,1.92,21.29,21.277,17.0]
[1674186024289,1.92,21.29,21.275,17.0]
[1674186024617,1.92,21.29,21.276,20.0]
[1674186024928,1.92,21.29,21.277,17.0]
[1674186028291,1.92,21.29,21.281,112.5]
[1674186035127,1.92,21.29,21.276,20.0]
[1674186035322,1.92,21.29,21.277,17.0]
[1674186035652,1.92,21.29,21.273,20.0]
[1674186035860,1.92,21.29,21.274,17.0]
[1674186036073,1.92,21.29,21.275,20.0]
[1674186036286,1.92,21.29,21.276,17.0]
[1674186036680,1.92,21.29,21.277,20.0]
[1674186036910,1.92,21.29,21.278,17.0]
[1674186047428,1.92,21.29,21.277,20.0]
[1674186047637,18.92,21.29,21.274,20.0]
[1674186047956,10.0,21.289,21.274,20.0]
[1674186048151,1.92,21.288,21.274,20.0]
[1674186048570,1.92,21.288,21.275,17.0]
[1674186048799,1.92,21.288,21.276,20.0]
[1674186049129,1.92,21.288,21.279,112.5]
[1674186049426,1.92,21.288,21.281,112.5]
[1674186049642,1.92,21.288,21.276,20.0]
[1674186050585,10.0,21.289,21.277,17.0]
[1674186052144,0.96,21.288,21.277,17.0]
[1674186052895,119.3813,21.292,21.277,17.0]
[1674186053099,119.3813,21.292,21.278,10.0]
[1674186053296,10.0,21.295,21.28,15.05]
[1674186053627,144.1248,21.306,21.281,0.96]
[1674186053945,10.0,21.305,21.281,31.92]
[1674186054260,10.0,21.305,21.283,10.0]
[1674186054475,10.0,21.305,21.284,17.0]
[1674186054664,10.0,21.305,21.285,20.0]
[1674186055002,10.0,21.305,21.286,27.0]
[1674186055191,35.21,21.304,21.287,20.0]
[1674186055403,35.21,21.304,21.288,17.0]
[1674186055732,10.0,21.303,21.288,17.0]
[1674186056361,35.21,21.304,21.29,15.05]
[1674186056555,10.0,21.305,21.291,17.0]
[1674186057201,108.9248,21.306,21.291,17.0]
[1674186057606,108.9248,21.306,21.293,10.0]
[1674186057837,108.9248,21.306,21.294,37.0]
[1674186058553,108.9248,21.306,21.295,10.0]
[1674186058766,0.96,21.305,21.296,37.0]
[1674186060877,10.96,21.305,21.296,20.0]
[1674186061084,0.96,21.305,21.294,20.0]
[1674186061282,0.96,21.305,21.295,17.0]
[1674186061492,0.96,21.305,21.296,20.0]
[1674186062433,10.96,21.305,21.296,20.0]
[1674186062853,0.96,21.304,21.296,20.0]
[1674186063089,0.96,21.303,21.294,20.0]
[1674186064862,0.96,21.304,21.294,20.0]
[1674186065074,0.96,21.305,21.295,17.0]
[1674186065286,0.96,21.304,21.296,20.0]
[1674186066550,108.9248,21.306,21.296,20.0]
[1674186067495,108.9248,21.306,21.297,17.0]
[1674186068238,111.6442,21.307,21.297,17.0]
[1674186072339,111.6442,21.307,21.296,20.0]
[1674186072652,28.92,21.306,21.285,159.68429022]
[1674186072842,35.21,21.305,21.285,159.68429022]
[1674186073177,11.92,21.304,21.285,159.68429022]
[1674186076746,45.21,21.305,21.291,17.0]
[1674186077063,111.6442,21.307,21.292,10.0]
[1674186077381,111.6442,21.307,21.294,10.0]
[1674186077594,111.6442,21.307,21.295,37.0]
[1674186079041,111.6442,21.307,21.296,10.0]
[1674186079290,111.6442,21.307,21.297,37.0]
[1674186090339,0.96,21.306,21.297,37.0]
[1674186091889,0.96,21.306,21.297,20.0]
[1674186092226,10.96,21.306,21.295,20.0]
[1674186092417,10.96,21.306,21.296,17.0]
[1674186092752,10.96,21.306,21.297,20.0]
[1674186093169,10.96,21.306,21.296,20.0]
[1674186093390,0.96,21.306,21.296,20.0]
[1674186097617,111.6442,21.307,21.297,17.0]
[1674186098211,111.6442,21.307,21.298,10.0]
[1674186098419,111.6442,21.307,21.299,17.0]
[1674186099274,111.6442,21.307,21.3,10.0]
[1674186099473,111.6442,21.307,21.301,17.0]
[1674186101665,35.19,21.314,21.301,17.0]
[1674186102115,45.19,21.315,21.301,17.0]
[1674186102420,10.0,21.315,21.301,17.0]
[1674186102627,149.5228,21.316,21.301,17.0]
[1674186102841,149.5228,21.316,21.303,10.0]
[1674186103044,10.96,21.315,21.304,17.0]
[1674186103254,0.96,21.314,21.305,20.0]
[1674186105146,114.3328,21.316,21.306,17.0]
[1674186105353,0.96,21.315,21.306,17.0]
[1674186105561,0.96,21.315,21.307,20.0]
[1674186107657,114.3328,21.316,21.307,20.0]
[1674186109862,114.3328,21.316,21.308,10.0]
[1674186110516,10.0,21.327,21.308,10.0]
[1674186110734,1.92,21.317,21.308,10.0]
[1674186111440,0.96,21.317,21.308,10.0]
[1674186113438,0.96,21.317,21.307,20.0]
[1674186113648,0.96,21.317,21.308,17.0]
[1674186115877,10.0,21.321,21.308,17.0]
[1674186116057,109.28866191,21.318,21.308,17.0]
[1674186116720,35.18,21.323,21.31,14.99]
[1674186116902,0.55297334,28.669,21.312,10.0]
[1674186116903,35.17,21.326,21.312,10.0]
[1674186117111,45.17,21.328,21.313,17.0]
[1674186117337,35.17,21.328,21.314,20.0]
[1674186117548,35.15,21.338,21.315,17.0]
[1674186117767,10.0,21.337,21.316,30.0]
[1674186118079,35.16,21.336,21.317,17.0]
[1674186118482,10.0,21.335,21.317,17.0]
[1674186118714,35.16,21.334,21.317,17.0]
[1674186118918,10.0,21.328,21.317,17.0]
[1674186119752,0.96,21.327,21.317,17.0]
[1674186121971,10.0,21.328,21.317,17.0]
[1674186122687,0.96,21.327,21.317,17.0]
[1674186123017,0.96,21.326,21.312,10.0]
[1674186123234,10.0,21.328,21.313,20.96]
[1674186123430,10.0,21.328,21.314,10.0]
[1674186123633,10.0,21.328,21.315,20.0]
[1674186123848,122.71,21.329,21.315,20.0]
[1674186124064,0.96,21.328,21.316,10.0]
[1674186124285,0.96,21.328,21.317,20.0]
[1674186124498,35.16,21.332,21.32,15.05]
[1674186124697,35.16,21.334,21.321,17.0]
[1674186125334,35.16,21.336,21.321,17.0]
[1674186126055,0.96,21.334,21.321,17.0]
[1674186126259,0.96,21.333,21.321,17.0]
[1674186127117,148.7823,21.338,21.321,17.0]
[1674186127320,148.7823,21.338,21.322,20.0]
[1674186127537,148.7823,21.338,21.323,27.0]
[1674186127740,148.7823,21.338,21.324,20.0]
[1674186127937,10.0,21.337,21.325,17.0]
[1674186128147,10.0,21.337,21.326,20.0]
[1674186128571,1.92,21.336,21.326,20.0]
[1674186128782,10.0,21.337,21.326,20.0]
[1674186129004,10.0,21.337,21.327,17.0]
[1674186129629,10.0,21.339,21.327,17.0]
[1674186130155,10.0,21.339,21.326,20.0]
[1674186130364,10.0,21.339,21.321,20.0]
[1674186130689,35.15,21.338,21.321,20.0]
[1674186130885,11.92,21.337,21.321,20.0]
[1674186131301,11.92,21.337,21.322,10.0]
[1674186131524,11.92,21.337,21.323,37.0]
[1674186135836,11.92,21.337,21.323,17.0]
[1674186136028,47.07,21.337,21.321,17.0]
[1674186138776,45.15,21.337,21.321,17.0]
[1674186139519,10.0,21.337,21.321,17.0]
[1674186139732,10.0,21.337,21.322,10.0]
[1674186139946,10.0,21.337,21.323,17.0]
[1674186141506,10.0,21.337,21.321,17.0]
[1674186142568,45.15,21.338,21.322,10.0]
[1674186142791,1.92,21.337,21.323,37.0]
[1674186145412,18.92,21.337,21.316,10.0]
[1674186145729,10.0,21.335,21.316,10.0]
[1674186145933,0.96,21.334,21.316,10.0]
[1674186146144,0.96,21.333,21.316,10.0]
[1674186146366,0.96,21.332,21.316,10.0]
[1674186146546,0.96,21.332,21.321,17.0]
[1674186152659,45.15,21.337,21.321,17.0]
[1674186152980,10.0,21.337,21.321,17.0]
[1674186153184,1.92,21.336,21.321,17.0]
[1674186156338,0.96,21.336,21.321,17.0]
[1674186156553,123.2126,21.339,21.323,10.0]
[1674186156764,123.2126,21.339,21.324,37.0]
[1674186156984,10.0,21.338,21.324,37.0]
[1674186157944,0.96,21.337,21.324,37.0]
[1674186158665,0.96,21.336,21.324,37.0]
[1674186158869,0.96,21.337,21.324,37.0]
[1674186159943,0.96,21.336,21.324,37.0]
[1674186165058,113.2126,21.339,21.325,10.0]
[1674186165269,113.2126,21.339,21.326,37.0]
[1674186165613,123.2126,21.339,21.326,37.0]
[1674186165925,10.0,21.338,21.326,37.0]
[1674186168242,10.0,21.338,21.326,20.0]
[1674186168434,1.92,21.337,21.322,20.0]
[1674186169814,1.92,21.337,21.323,17.0]
[1674186169999,1.92,21.337,21.324,20.0]
[1674186170310,1.92,21.337,21.325,17.0]
[1674186170746,1.92,21.337,21.326,20.0]
[1674186170956,1.92,21.337,21.327,17.0]
[1674186175070,113.2126,21.339,21.327,17.0]
[1674186175591,118.7359,21.34,21.327,17.0]
[1674186175787,118.7359,21.34,21.33,15.05]
[1674186175995,151.2784,21.347,21.331,17.0]
[1674186178973,1.92,21.342,21.331,17.0]
[1674186179398,151.2784,21.347,21.331,17.0]
[1674186179612,116.1384,21.347,21.332,21.92]
[1674186179817,10.0,21.346,21.333,17.0]
[1674186180224,10.0,21.346,21.334,20.0]
[1674186180436,10.0,21.346,21.335,17.0]
[1674186180658,10.0,21.346,21.336,20.0]
[1674186180859,10.0,21.346,21.337,17.0]
[1674186181703,10.0,21.349,21.337,17.0]
[1674186181917,10.0,21.35,21.337,17.0]
[1674186182863,10.0,21.353,21.34,15.05]
[1674186183057,10.0,21.353,21.341,17.0]
[1674186183267,10.0,21.35,21.341,17.0]
[1674186190123,10.0,21.353,21.341,17.0]
[1674186191039,10.0,21.355,21.341,17.0]
[1674186192014,10.0,21.355,21.342,0.96]
[1674186192196,10.0,21.355,21.342,10.96]
[1674186192532,10.0,21.355,21.343,17.0]
[1674186193148,45.12,21.355,21.341,17.0]
[1674186193476,10.0,21.355,21.341,17.0]
[1674186193702,0.96,21.354,21.341,17.0]
[1674186194192,0.96,21.354,21.34,15.05]
[1674186194403,36.09,21.353,21.336,20.0]
[1674186194620,17.96,21.352,21.332,20.0]
[1674186194826,36.09,21.351,21.33,15.05]
[1674186195043,36.09,21.351,21.321,10.0]
[1674186195044,10.0,21.349,21.321,10.0]
[1674186195263,74.06,21.348,21.321,10.0]
[1674186195454,10.0,21.347,21.325,10.0]
[1674186195663,54.06,21.346,21.325,10.0]
[1674186195885,10.0,21.345,21.325,10.0]
[1674186196104,37.06,21.344,21.325,10.0]
[1674186196310,10.0,21.343,21.326,37.0]
[1674186196523,1.92,21.342,21.326,37.0]
[1674186197274,10.0,21.343,21.326,37.0]
[1674186197577,117.3707,21.344,21.331,10.0]
[1674186197778,117.3707,21.344,21.332,37.0]
[1674186197978,10.0,21.345,21.332,37.0]
[1674186199902,10.0,21.345,21.332,17.0]
[1674186200207,10.0,21.345,21.333,20.0]
[1674186200419,10.0,21.345,21.334,17.0]
[1674186200629,10.0,21.345,21.335,20.0]
[1674186201564,1.92,21.344,21.335,20.0]
[1674186201775,1.92,21.344,21.331,20.0]
[1674186201986,1.92,21.344,21.332,17.0]
[1674186202201,1.92,21.344,21.333,20.0]
[1674186205654,1.92,21.344,21.331,20.0]
[1674186206819,10.0,21.345,21.332,17.0]
[1674186207031,10.0,21.345,21.333,20.0]
[1674186207247,10.0,21.345,21.334,17.0]
[1674186207668,10.0,21.345,21.335,20.0]
[1674186211148,1.92,21.344,21.335,20.0]
[1674186211645,1.92,21.344,21.331,20.0]
[1674186211857,1.92,21.344,21.332,17.0]
[1674186212068,1.92,21.344,21.333,20.0]
[1674186214085,0.96,21.344,21.334,17.0]
[1674186214299,10.0,21.345,21.335,20.0]
[1674186215766,10.0,21.348,21.335,20.0]
[1674186215959,10.0,21.348,21.336,17.0]
[1674186216179,10.0,21.348,21.337,20.0]
[1674186217031,1.92,21.347,21.337,20.0]
[1674186218515,10.0,21.348,21.337,20.0]
[1674186219131,1.92,21.347,21.337,20.0]
[1674186220512,10.0,21.348,21.337,20.0]
[1674186222088,0.96,21.347,21.337,20.0]
[1674186222276,1.92,21.347,21.337,20.0]
[1674186223134,10.0,21.348,21.337,20.0]
[1674186227229,10.0,21.35,21.338,17.0]
[1674186229327,10.0,21.355,21.338,17.0]
[1674186229960,10.0,21.36,21.34,15.05]
[1674186230277,10.0,21.36,21.341,38.92]
[1674186230703,10.0,21.36,21.342,10.0]
[1674186231021,10.0,21.36,21.344,10.0]
[1674186231220,10.0,21.36,21.345,38.92]
[1674186234089,10.0,21.36,21.346,10.0]
[1674186234280,10.0,21.36,21.347,37.0]
[1674186237328,35.1,21.369,21.347,37.0]
[1674186237548,123.9041,21.368,21.348,11.92]
[1674186237761,123.9041,21.368,21.349,17.0]
[1674186238073,10.0,21.367,21.349,17.0]
[1674186238268,10.0,21.361,21.349,17.0]
[1674186239123,10.0,21.361,21.348,18.92]
[1674186242585,10.0,21.361,21.348,17.0]
[1674186244188,10.0,21.364,21.349,0.96]
[1674186244368,10.0,21.364,21.35,15.04]
[1674186244584,10.0,21.364,21.351,17.0]
[1674186245108,10.0,21.365,21.351,17.0]
[1674186245340,35.1,21.367,21.353,10.0]
[1674186245559,10.0,21.37,21.354,17.96]
[1674186245861,35.1,21.369,21.354,17.96]
[1674186246490,35.1,21.369,21.355,10.0]
[1674186246703,10.0,21.37,21.356,38.92]
[1674186248906,10.0,21.372,21.356,38.92]
[1674186249112,108.6599,21.373,21.36,15.05]
[1674186249434,10.0,21.372,21.361,17.0]
[1674186249619,0.96,21.371,21.36,15.05]
[1674186249833,0.96,21.37,21.356,20.0]
[1674186250267,10.0,21.372,21.356,20.0]
[1674186250485,10.0,21.372,21.357,0.96]
[1674186251119,10.0,21.372,21.358,0.96]
[1674186251306,10.0,21.372,21.358,17.96]
[1674186251517,10.0,21.372,21.358,1.903]
[1674186251735,45.1,21.372,21.356,20.0]
[1674186252063,45.1,21.372,21.352,32.454]
[1674186252934,0.96,21.371,21.352,32.454]
[1674186253127,10.0,21.369,21.353,17.0]
[1674186253319,1.92,21.368,21.354,20.0]
[1674186253533,1.92,21.368,21.355,27.0]
[1674186253753,1.92,21.368,21.356,20.0]
[1674186253960,1.92,21.368,21.357,17.0]
[1674186254704,1.92,21.368,21.356,20.0]
[1674186254911,10.0,21.366,21.353,20.0]
[1674186255626,0.96,21.365,21.344,51.93659022]
[1674186255842,36.07,21.364,21.344,10.0]
[1674186256059,10.96,21.363,21.344,10.0]
[1674186256391,10.0,21.361,21.34,121.9879]
[1674186256703,0.96,21.36,21.34,121.9879]
[1674186256921,0.96,21.359,21.34,121.9879]
[1674186257123,0.96,21.358,21.34,121.9879]
[1674186257646,0.96,21.357,21.34,121.9879]
[1674186257965,0.96,21.356,21.34,121.9879]
[1674186258273,0.96,21.356,21.341,20.0]
[1674186258679,0.96,21.355,21.341,20.0]
[1674186259947,0.96,21.355,21.342,17.0]
[1674186260155,0.96,21.355,21.343,20.0]
[1674186260371,0.96,21.355,21.344,17.0]
[1674186260568,0.96,21.355,21.345,20.0]
[1674186261197,0.96,21.354,21.337,112.5]
[1674186261428,0.96,21.353,21.337,112.5]
[1674186261847,0.96,21.353,21.334,10.0]
[1674186262251,0.96,21.353,21.332,10.0]
[1674186262461,0.96,21.353,21.334,10.0]
[1674186262694,0.96,21.353,21.335,0.96]